fUSD/lending_fUSD_20240506
["ID","MTS","AMOUNT","RATE_DAILY","PERIOD"]
[326509347,1715031074238,-1053.76,0.00025205,4]
[326509348,1715031074248,-3315.17,0.00025205,4]
[326509349,1715031074258,-500.0,0.00025205,4]
[326509350,1715031074268,-587.69,0.00025205,4]
[326509351,1715031074278,-1007.77,0.00025205,4]
[326509352,1715031074288,-2928.99,0.00025205,2]
[326509353,1715031074298,-796.07,0.00025205,4]
[326509354,1715031074308,-500.0,0.00025205,4]
[326509355,1715031074318,-500.0,0.00025205,4]
[326509356,1715031074328,-500.0,0.00025205,4]
[326509357,1715031074338,-500.0,0.00025205,4]
[326509358,1715031074349,-1786.34,0.00025205,4]
[326509359,1715031074358,-1354.6,0.00025205,4]
[326509360,1715031074369,-656.24,0.00025205,4]
[326509361,1715031074379,-500.0,0.00025205,4]
[326509362,1715031074389,-1109.65,0.00025205,4]
[326509363,1715031074399,-500.0,0.00025205,4]
[326509364,1715031074409,-500.0,0.00025205,4]
[326509365,1715031074420,-681.11,0.00025205,4]
[326509366,1715031074430,-1113.02,0.00025205,4]
[326509367,1715031074441,-4056.47,0.00025205,4]
[326509368,1715031074451,-500.0,0.00025205,4]
[326509369,1715031074461,-500.0,0.00025205,4]
[326509370,1715031074471,-1420.26,0.00025205,4]
[326509371,1715031074481,-500.0,0.00025205,4]
[326509372,1715031074490,-500.0,0.00025205,4]
[326509373,1715031074501,-500.0,0.00025205,4]
[326509374,1715031074511,-500.0,0.00025205,4]
[326509375,1715031074520,-794.82,0.00025205,4]
[326509376,1715031074530,-500.0,0.00025205,4]
[326509377,1715031074541,-558.42,0.00025205,4]
[326509378,1715031074552,-653.67,0.00025205,4]
[326509379,1715031074561,-995.72,0.00025205,4]
[326509380,1715031074571,-500.0,0.00025205,4]
[326509381,1715031074580,-523.98,0.00025205,4]
[326509382,1715031074592,-1842.59,0.00025205,4]
[326509383,1715031074601,-1709.41,0.00025205,4]
[326509384,1715031074611,-26351.66,0.00025205,4]
[326509385,1715031074620,-500.0,0.00025205,4]
[326509386,1715031074630,-500.0,0.00025205,4]
[326509387,1715031074639,-1941.85,0.00025205,4]
[326509388,1715031074649,-500.0,0.00025205,4]
[326509389,1715031074659,-557.25,0.00025205,4]
[326509390,1715031074669,-500.0,0.00025205,4]
[326509391,1715031074678,-500.0,0.00025205,2]
[326509392,1715031074688,-500.0,0.00025205,4]
[326509393,1715031074698,-1918.01,0.00025205,4]
[326509394,1715031074707,-500.0,0.00025205,4]
[326509395,1715031074716,-999.81,0.00025205,4]
[326509396,1715031074726,-2710.54,0.00025205,4]
[326509397,1715031074735,-500.0,0.00025205,4]
[326509398,1715031074744,-500.0,0.00025205,4]
[326509399,1715031074754,-620.83,0.00025205,4]
[326509400,1715031074764,-2152.19,0.00025205,4]
[326509401,1715031074773,-1210.79,0.00025205,4]
[326509402,1715031074782,-500.0,0.00025205,4]
[326509403,1715031074791,-2124.2,0.00025205,4]
[326509404,1715031074801,-2412.19,0.00025205,4]
[326509405,1715031074810,-764.57,0.00025205,4]
[326509406,1715031074820,-500.0,0.00025205,4]
[326509407,1715031074830,-556.07,0.00025205,4]
[326509408,1715031074841,-500.0,0.00025205,2]
[326509409,1715031074851,-2121.1,0.00025205,4]
[326509410,1715031074861,-1004.86,0.00025205,4]
[326509411,1715031074872,-2888.84,0.00025205,4]
[326509412,1715031074882,-500.0,0.00025205,4]
[326509413,1715031074892,-500.0,0.00025205,4]
[326509414,1715031074909,-500.0,0.00025205,4]
[326509415,1715031074920,-984.22,0.00025205,4]
[326509416,1715031074930,-1386.29,0.00025205,4]
[326509417,1715031074940,-500.0,0.00025205,4]
[326509418,1715031074950,-500.0,0.00025205,4]
[326509419,1715031074960,-1627.66,0.00025205,4]
[326509420,1715031074971,-626.73,0.00025205,4]
[326509421,1715031074981,-649.76,0.00025205,4]
[326509422,1715031074991,-1022.32,0.00025205,4]
[326509423,1715031075070,-1772.5,0.00025205,4]
[326509424,1715031075081,-500.0,0.00025205,4]
[326509425,1715031075092,-577.82,0.00025205,4]
[326509426,1715031075101,-732.84,0.00025205,4]
[326509427,1715031075111,-739.6,0.00025205,4]
[326509428,1715031075120,-1328.31,0.00025205,4]
[326509429,1715031075130,-500.0,0.00025205,4]
[326509430,1715031075140,-875.76,0.00025205,4]
[326509431,1715031075149,-1414.07,0.00025205,4]
[326509432,1715031075159,-2426.78,0.00025205,4]
[326509433,1715031075168,-500.0,0.00025205,4]
[326509434,1715031075179,-500.0,0.00025205,4]
[326509435,1715031075188,-1266.5,0.00025205,4]
[326509436,1715031075198,-500.0,0.00025205,4]
[326509437,1715031075207,-500.0,0.00025205,4]
[326509438,1715031075217,-1241.7,0.00025205,4]
[326509439,1715031075226,-1000.41,0.00025205,4]
[326509440,1715031075236,-500.0,0.00025205,4]
[326509441,1715031075246,-17228.12,0.00025205,4]
[326509442,1715031075256,-2819.95,0.00025205,4]
[326509443,1715031075265,-500.0,0.00025205,4]
[326509444,1715031075275,-500.0,0.00025205,4]
[326509445,1715031075284,-2968.23,0.00025205,4]
[326509446,1715031075294,-610.51,0.00025205,4]
[326509447,1715031075303,-500.0,0.00025205,4]
[326509448,1715031075313,-1827.59,0.00025205,4]
[326509449,1715031075323,-1893.34,0.00025205,4]
[326509450,1715031075332,-500.0,0.00025205,4]
[326509451,1715031075342,-846.68,0.00025205,4]
[326509452,1715031075352,-1010.8,0.00025205,4]
[326509453,1715031075361,-2521.06,0.00025205,4]
[326509454,1715031075370,-500.0,0.00025205,4]
[326509455,1715031075380,-500.0,0.00025205,4]
[326509456,1715031075390,-500.0,0.00025205,4]
[326509457,1715031075399,-235.27964914,0.00025205,4]
[326509458,1715031075408,-925.25,0.00025205,4]
[326509459,1715031075418,-538.96,0.00025205,4]
[326509460,1715031075427,-1016.07,0.00025205,4]
[326509461,1715031075437,-675.15,0.00025205,4]
[326509462,1715031075446,-1587.31,0.00025205,4]
[326509463,1715031075456,-500.0,0.00025205,4]
[326509464,1715031075465,-500.0,0.00025205,4]
[326509465,1715031075475,-500.0,0.00025205,4]
[326509466,1715031075484,-500.0,0.00025205,4]
[326509467,1715031075494,-568.7,0.00025205,4]
[326509468,1715031075503,-1642.37,0.00025205,4]
[326509469,1715031075513,-1486.12,0.00025205,4]
[326509470,1715031075523,-3553.56,0.00025205,4]
[326509471,1715031075532,-500.0,0.00025205,4]
[326509472,1715031075542,-510.94,0.00025205,4]
[326509473,1715031075551,-500.0,0.00025205,4]
[326509474,1715031075560,-237.64585072,0.00025205,4]
[326509475,1715031075569,-500.0,0.00025205,4]
[326509476,1715031075578,-606.81,0.00025205,4]
[326509477,1715031075587,-1563.55,0.00025205,4]
[326509478,1715031075596,-2311.9,0.00025205,4]
[326509479,1715031075606,-500.0,0.00025205,4]
[326509480,1715031075615,-3279.85,0.00025205,4]
[326509481,1715031075624,-500.0,0.00025205,4]
[326509482,1715031075634,-2357.7,0.00025205,4]
[326509483,1715031075643,-500.0,0.00025205,4]
[326509484,1715031075653,-2717.0,0.00025205,4]
[326509485,1715031075662,-500.0,0.00025205,4]
[326509486,1715031075671,-500.0,0.00025205,4]
[326509487,1715031075681,-1623.17,0.00025205,4]
[326509488,1715031075690,-1670.09,0.00025205,4]
[326509489,1715031075700,-529.57,0.00025205,4]
[326509490,1715031075710,-1507.64,0.00025205,4]
[326509491,1715031075720,-500.0,0.00025205,4]
[326509492,1715031075729,-4805.25,0.00025205,4]
[326509493,1715031075740,-847.18,0.00025205,4]
[326509494,1715031075750,-1607.71,0.00025205,4]
[326509495,1715031075761,-500.0,0.00025205,4]
[326509496,1715031075771,-5042.86,0.00025205,4]
[326509497,1715031075782,-500.0,0.00025205,4]
[326509498,1715031075791,-500.0,0.00025205,2]
[326509499,1715031075801,-500.0,0.00025205,4]
[326509500,1715031075810,-2446.52,0.00025205,4]
[326509501,1715031075820,-1030.27,0.00025205,4]
[326509502,1715031075831,-2055.37,0.00025205,4]
[326509503,1715031075841,-881.3,0.00025205,4]
[326509504,1715031075851,-500.0,0.00025205,4]
[326509505,1715031075860,-1369.87,0.00025205,4]
[326509506,1715031075870,-1101.46,0.00025205,4]
[326509507,1715031075880,-624.63,0.00025205,4]
[326509508,1715031075890,-893.84,0.00025205,4]
[326509509,1715031075899,-1145.24,0.00025205,4]
[326509510,1715031075912,-1454.94,0.00025205,4]
[326509511,1715031075922,-1804.42,0.00025205,4]
[326509512,1715031075931,-624.66,0.00025205,4]
[326509513,1715031075941,-4504.6,0.00025205,4]
[326509514,1715031075951,-5025.67,0.00025205,4]
[326509515,1715031075962,-513.04,0.00025205,4]
[326509516,1715031075971,-1909.43,0.00025205,4]
[326509517,1715031075982,-3029.95,0.00025205,4]
[326509518,1715031075992,-1172.4,0.00025205,4]
[326509519,1715031076007,-500.0,0.00025205,4]
[326509520,1715031076018,-500.0,0.00025205,4]
[326509521,1715031076029,-500.0,0.00025205,4]
[326509522,1715031076040,-500.0,0.00025205,4]
[326509523,1715031076052,-3129.61,0.00025205,4]
[326509524,1715031076062,-500.0,0.00025205,4]
[326509525,1715031076072,-511.69,0.00025205,4]
[326509526,1715031076082,-500.0,0.00025205,4]
[326509527,1715031076092,-500.0,0.00025205,4]
[326509528,1715031076102,-787.35,0.00025205,4]
[326509529,1715031076112,-2963.62,0.00025205,4]
[326509530,1715031076123,-1725.91,0.00025205,4]
[326509531,1715031076133,-500.0,0.00025205,4]
[326509532,1715031076142,-700.4,0.00025205,4]
[326509533,1715031076152,-2549.89,0.00025205,4]
[326509534,1715031076161,-6089.93,0.00025205,4]
[326509535,1715031076174,-500.0,0.00025205,4]
[326509536,1715031076184,-812.25,0.00025205,4]
[326509537,1715031076195,-1260.28,0.00025205,4]
[326509538,1715031076204,-1645.8,0.00025205,4]
[326509539,1715031076216,-1157.88,0.00025205,4]
[326509540,1715031076226,-840.73,0.00025205,4]
[326509541,1715031076236,-1404.04,0.00025205,4]
[326509542,1715031076247,-500.0,0.00025205,4]
[326509543,1715031076256,-600.51,0.00025205,4]
[326509544,1715031076267,-792.22,0.00025205,4]
[326509545,1715031076277,-1298.74,0.00025205,4]
[326509546,1715031076288,-3578.96,0.00025205,4]
[326509547,1715031076298,-500.0,0.00025205,4]
[326509548,1715031076308,-2941.77,0.00025205,4]
[326509549,1715031076318,-500.0,0.00025205,4]
[326509550,1715031076329,-500.0,0.00025205,4]
[326509551,1715031076339,-5511.73,0.00025205,4]
[326509552,1715031076349,-660.33,0.00025205,4]
[326509553,1715031076359,-587.71,0.00025205,4]
[326509554,1715031076369,-1007.3,0.00025205,4]
[326509555,1715031076379,-1598.33,0.00025205,4]
[326509556,1715031076389,-1684.79,0.00025205,4]
[326509557,1715031076399,-500.0,0.00025205,4]
[326509558,1715031076408,-500.0,0.00025205,4]
[326509559,1715031076418,-792.67,0.00025205,4]
[326509560,1715031076427,-977.38,0.00025205,4]
[326509561,1715031076438,-1317.13,0.00025205,4]
[326509562,1715031076448,-4194.34,0.00025205,4]
[326509563,1715031076458,-1739.99,0.00025205,4]
[326509564,1715031076468,-3442.96,0.00025205,4]
[326509565,1715031076478,-5342.9,0.00025205,4]
[326509566,1715031076488,-1350.74,0.00025205,4]
[326509567,1715031076498,-500.0,0.00025205,4]
[326509568,1715031076508,-500.0,0.00025205,4]
[326509569,1715031076518,-500.0,0.00025205,4]
[326509570,1715031076528,-774.67,0.00025205,4]
[326509571,1715031076538,-1240.38,0.00025205,4]
[326509572,1715031076548,-500.0,0.00025205,4]
[326509573,1715031076558,-500.0,0.00025205,4]
[326509574,1715031076568,-1129.1,0.00025205,4]
[326509575,1715031076579,-3043.33,0.00025205,4]
[326509576,1715031076589,-500.0,0.00025205,4]
[326509577,1715031076599,-500.0,0.00025205,4]
[326509578,1715031076608,-2466.91,0.00025205,4]
[326509579,1715031076618,-727.16,0.00025205,4]
[326509580,1715031076628,-627.14,0.00025205,4]
[326509581,1715031076638,-500.0,0.00025205,4]
[326509582,1715031076649,-500.0,0.00025205,4]
[326509583,1715031076658,-1388.01,0.00025205,4]
[326509584,1715031076667,-500.0,0.00025205,4]
[326509585,1715031076678,-3099.06,0.00025205,4]
[326509586,1715031076687,-500.0,0.00025205,4]
[326509587,1715031076697,-1636.84,0.00025205,4]
[326509588,1715031076706,-1048.78,0.00025205,4]
[326509589,1715031076716,-832.43,0.00025205,4]
[326509590,1715031076725,-733.28,0.00025205,4]
[326509591,1715031076736,-857.25,0.00025205,4]
[326509592,1715031076747,-3047.56,0.00025205,4]
[326509593,1715031076757,-9328.48,0.00025205,4]
[326509594,1715031076767,-679.68,0.00025205,4]
[326509595,1715031076777,-3821.76,0.00025205,4]
[326509596,1715031076787,-740.67,0.00025205,4]
[326509597,1715031076796,-2420.5,0.00025205,4]
[326509598,1715031076806,-5805.45,0.00025205,4]
[326509599,1715031076815,-500.0,0.00025205,4]
[326509600,1715031076825,-500.0,0.00025205,4]
[326509601,1715031076835,-664.82,0.00025205,4]
[326509602,1715031076844,-561.72,0.00025205,4]
[326509603,1715031076853,-3214.95,0.00025205,4]
[326509604,1715031076863,-2553.92,0.00025205,4]
[326509605,1715031076873,-1621.27,0.00025205,4]
[326509606,1715031076882,-500.0,0.00025205,4]
[326509607,1715031076893,-500.0,0.00025205,4]
[326509608,1715031076904,-1194.71,0.00025205,4]
[326509609,1715031076918,-1498.67,0.00025205,4]
[326509610,1715031076930,-4675.22,0.00025205,4]
[326509611,1715031076940,-1098.83,0.00025205,4]
[326509612,1715031076949,-500.0,0.00025205,4]
[326509613,1715031076960,-1309.62,0.00025205,4]
[326509614,1715031076969,-2788.51,0.00025205,4]
[326509615,1715031076979,-931.25,0.00025205,4]
[326509616,1715031076988,-4188.07,0.00025205,4]
[326509617,1715031076999,-500.0,0.00025205,4]
[326509618,1715031077014,-500.0,0.00025205,4]
[326509619,1715031077024,-6306.54,0.00025205,4]
[326509620,1715031077034,-1486.86,0.00025205,4]
[326509621,1715031077046,-1951.05,0.00025205,4]
[326509622,1715031077057,-3336.65,0.00025205,4]
[326509623,1715031077068,-500.0,0.00025205,4]
[326509624,1715031077078,-500.0,0.00025205,4]
[326509625,1715031077091,-917.46,0.00025205,4]
[326509626,1715031077101,-1477.39,0.00025205,4]
[326509627,1715031077112,-8966.68,0.00025205,4]
[326509628,1715031077122,-38458.54,0.00025205,4]
[326509629,1715031077132,-500.0,0.00025205,4]
[326509630,1715031077142,-500.0,0.00025205,4]
[326509631,1715031077152,-16163.72,0.00025205,4]
[326509632,1715031077162,-1045.76,0.00025205,4]
[326509633,1715031077173,-500.0,0.00025205,4]
[326509634,1715031077183,-504.91,0.00025205,4]
[326509635,1715031077193,-954.12,0.00025205,4]
[326509636,1715031077203,-204.27037622,0.00025205,4]
[326509637,1715031077213,-500.0,0.00025205,4]
[326509638,1715031077223,-723.3,0.00025205,4]
[326509639,1715031077244,-2237.84,0.00025205,4]
[326509640,1715031077255,-500.0,0.00025205,4]
[326509641,1715031077267,-6339.84,0.00025205,4]
[326509642,1715031077278,-10496.44,0.00025205,4]
[326509643,1715031077289,-4475.05,0.00025205,4]
[326509644,1715031077299,-1756.59,0.00025205,4]
[326509645,1715031077309,-500.0,0.00025205,4]
[326509646,1715031077320,-2908.13,0.00025205,4]
[326509647,1715031077332,-531.76,0.00025205,4]
[326509648,1715031077343,-500.0,0.00025205,4]
[326509649,1715031077354,-500.0,0.00025205,4]
[326509650,1715031077365,-9791.9,0.00025205,4]
[326509651,1715031077375,-2458.11,0.00025205,4]
[326509652,1715031077387,-3365.17,0.00025205,4]
[326509653,1715031077397,-1502.16,0.00025205,4]
[326509654,1715031077408,-6684.05,0.00025205,4]
[326509655,1715031077419,-2796.08,0.00025205,4]
[326509656,1715031077430,-913.77,0.00025205,4]
[326509657,1715031077441,-2665.85,0.00025205,4]
[326509658,1715031077451,-1231.26,0.00025205,4]
[326509659,1715031077462,-569.77,0.00025205,4]
[326509660,1715031077472,-893.99,0.00025205,4]
[326509661,1715031077483,-625.16,0.00025205,4]
[326509662,1715031077495,-1040.2,0.00025205,4]
[326509663,1715031077506,-233.714951,0.00025205,7]
[326509664,1715031077517,-233.714951,0.00025205,7]
[326509665,1715031077527,-500.0,0.00025205,4]
[326509666,1715031077540,-500.0,0.00025205,4]
[326509667,1715031077550,-7494.2,0.00025205,4]
[326509668,1715031077562,-4199.64,0.00025205,4]
[326509669,1715031077573,-233.714951,0.00025205,7]
[326509670,1715031077584,-233.714959,0.00025205,7]
[326509671,1715031077595,-811.28,0.00025205,4]
[326509672,1715031077605,-2901.29,0.00025205,4]
[326509673,1715031077617,-500.0,0.00025205,4]
[326509674,1715031077628,-641.66,0.00025205,4]
[326509675,1715031077639,-647.86276235,0.00025205,4]
[326509676,1715031077651,-5391.44,0.00025205,4]
[326509677,1715031077661,-3059.42,0.00025205,4]
[326509678,1715031077672,-14507.83,0.00025205,4]
[326509679,1715031077682,-500.0,0.00025205,4]
[326509680,1715031077693,-719.48,0.00025205,4]
[326509681,1715031077704,-4378.65,0.00025205,4]
[326509682,1715031077716,-3354.72,0.00025205,4]
[326509683,1715031077727,-703.99,0.00025205,4]
[326509684,1715031077738,-545.58,0.00025205,4]
[326509685,1715031077748,-851.16,0.00025205,4]
[326509686,1715031077759,-815.86,0.00025205,4]
[326509687,1715031077769,-1574.0,0.00025205,4]
[326509688,1715031077780,-3395.03,0.00025205,4]
[326509689,1715031077791,-500.0,0.00025205,4]
[326509690,1715031077802,-3331.75,0.00025205,4]
[326509691,1715031077813,-500.0,0.00025205,4]
[326509692,1715031077823,-6020.83,0.00025205,4]
[326509693,1715031077835,-500.0,0.00025205,4]
[326509694,1715031077846,-1444.79,0.00025205,4]
[326509695,1715031077856,-6457.19,0.00025205,4]
[326509696,1715031077867,-2536.39,0.00025205,4]
[326509697,1715031077878,-500.0,0.00025205,4]
[326509698,1715031077889,-500.0,0.00025205,4]
[326509699,1715031077900,-500.0,0.00025205,4]
[326509700,1715031077915,-1376.22,0.00025205,4]
[326509701,1715031077926,-1281.46,0.00025205,4]
[326509702,1715031077937,-500.0,0.00025205,4]
[326509703,1715031077947,-500.0,0.00025205,4]
[326509704,1715031077958,-1487.03,0.00025205,4]
[326509705,1715031077968,-699.64,0.00025205,4]
[326509706,1715031077980,-1058.18,0.00025205,4]
[326509707,1715031077991,-1648.26,0.00025205,4]
[326509708,1715031078003,-2243.7,0.00025205,4]
[326509709,1715031078014,-1155.31,0.00025205,4]
[326509710,1715031078024,-500.0,0.00025205,4]
[326509711,1715031078035,-24024.6,0.00025205,4]
[326509712,1715031078047,-573.81,0.00025205,4]
[326509713,1715031078057,-500.0,0.00025205,4]
[326509714,1715031078068,-502.41800566,0.00025205,4]
[326509715,1715031078079,-913.31,0.00025205,4]
[326509716,1715031078091,-500.0,0.00025205,4]
[326509717,1715031078102,-1000.15,0.00025205,4]
[326509718,1715031078112,-1347.18,0.00025205,4]
[326509719,1715031078123,-3206.02,0.00025205,4]
[326509720,1715031078134,-3177.01,0.00025205,4]
[326509721,1715031078144,-8857.01,0.00025205,4]
[326509722,1715031078155,-500.0,0.00025205,4]
[326509723,1715031078166,-1089.08,0.00025205,4]
[326509724,1715031078176,-4104.22,0.00025205,4]
[326509725,1715031078186,-3697.1,0.00025205,4]
[326509726,1715031078196,-3482.33,0.00025205,4]
[326509727,1715031078207,-728.07,0.00025205,4]
[326509728,1715031078217,-6226.62,0.00025205,4]
[326509729,1715031078227,-647.95,0.00025205,4]
[326509730,1715031078237,-886.73,0.00025205,4]
[326509731,1715031078249,-806.55,0.00025205,4]
[326509732,1715031078259,-500.0,0.00025205,4]
[326509733,1715031078270,-1331.39,0.00025205,4]
[326509734,1715031078281,-500.0,0.00025205,4]
[326509735,1715031078291,-1926.28,0.00025205,4]
[326509736,1715031078303,-17511.2,0.00025205,4]
[326509737,1715031078313,-500.0,0.00025205,4]
[326509738,1715031078323,-424.0,0.00025205,4]
[326509739,1715031078335,-4104.32,0.00025205,4]
[326509740,1715031078344,-500.0,0.00025205,4]
[326509741,1715031078355,-500.0,0.00025205,4]
[326509742,1715031078366,-4383.07,0.00025205,4]
[326509743,1715031078376,-5721.59,0.00025205,4]
[326509744,1715031078387,-1587.69,0.00025205,4]
[326509745,1715031078398,-4109.65,0.00025205,4]
[326509746,1715031078408,-500.0,0.00025205,4]
[326509747,1715031078419,-2145.43,0.00025205,4]
[326509748,1715031078430,-500.0,0.00025205,4]
[326509749,1715031078440,-1693.82,0.00025205,4]
[326509750,1715031078451,-500.0,0.00025205,4]
[326509751,1715031078462,-3818.45,0.00025205,4]
[326509752,1715031078472,-2489.13,0.00025205,4]
[326509753,1715031078484,-500.0,0.00025205,4]
[326509754,1715031078495,-500.0,0.00025205,4]
[326509755,1715031078505,-1235.6,0.00025205,4]
[326509756,1715031078515,-1803.06,0.00025205,4]
[326509757,1715031078526,-1422.98,0.00025205,4]
[326509758,1715031078536,-500.0,0.00025205,4]
[326509759,1715031078546,-925.53,0.00025205,4]
[326509760,1715031078558,-500.0,0.00025205,4]
[326509761,1715031078569,-500.0,0.00025205,4]
[326509762,1715031078580,-4009.65,0.00025205,4]
[326509763,1715031078597,-3455.01,0.00025205,4]
[326509764,1715031078607,-500.0,0.00025205,4]
[326509765,1715031078618,-1763.79,0.00025205,4]
[326509766,1715031078631,-3090.21,0.00025205,4]
[326509767,1715031078641,-752.53,0.00025205,4]
[326509768,1715031078652,-8993.73,0.00025205,4]
[326509769,1715031078665,-2109.91,0.00025205,4]
[326509770,1715031078676,-500.0,0.00025205,4]
[326509771,1715031078687,-1452.46,0.00025205,4]
[326509772,1715031078697,-527.49,0.00025205,4]
[326509773,1715031078708,-1296.18,0.00025205,4]
[326509774,1715031078720,-1003.75,0.00025205,4]
[326509775,1715031078731,-2186.59,0.00025205,4]
[326509776,1715031078743,-1095.95,0.00025205,4]
[326509777,1715031078754,-1539.92,0.00025205,4]
[326509778,1715031078765,-500.0,0.00025205,4]
[326509779,1715031078774,-571.37458802,0.00025205,4]
[326509780,1715031078785,-500.0,0.00025205,4]
[326509781,1715031078795,-1168.32,0.00025205,4]
[326509782,1715031078806,-2768.2,0.00025205,4]
[326509783,1715031078817,-967.43,0.00025205,4]
[326509784,1715031078827,-2118.72,0.00025205,4]
[326509785,1715031078840,-2922.7,0.00025205,4]
[326509786,1715031078850,-1023.47,0.00025205,4]
[326509787,1715031078860,-744.17,0.00025205,4]
[326509788,1715031078875,-649.81,0.00025205,4]
[326509789,1715031078886,-1773.59,0.00025205,4]
[326509790,1715031078897,-2195.84,0.00025205,4]
[326509791,1715031078906,-1361.61,0.00025205,4]
[326509792,1715031078919,-503.86,0.00025205,4]
[326509793,1715031078930,-526.56,0.00025205,4]
[326509794,1715031078940,-1416.83,0.00025205,4]
[326509795,1715031078950,-933.52,0.00025205,4]
[326509796,1715031078960,-500.0,0.00025205,2]
[326509797,1715031078970,-552.72,0.00025205,4]
[326509798,1715031078981,-10444.6,0.00025205,4]
[326509799,1715031078991,-2690.11,0.00025205,4]
[326509800,1715031079004,-1747.89,0.00025205,4]
[326509801,1715031079015,-1473.33,0.00025205,4]
[326509802,1715031079025,-2767.88,0.00025205,4]
[326509803,1715031079036,-1828.82,0.00025205,4]
[326509804,1715031079048,-44233.77,0.00025205,4]
[326509805,1715031079058,-500.0,0.00025205,4]
[326509806,1715031079069,-1382.73,0.00025205,4]
[326509807,1715031079081,-830.11,0.00025205,4]
[326509808,1715031079093,-500.0,0.00025205,2]
[326509809,1715031079103,-2490.28,0.00025205,4]
[326509810,1715031079114,-862.67,0.00025205,4]
[326509811,1715031079124,-500.0,0.00025205,4]
[326509812,1715031079135,-6645.33,0.00025205,4]
[326509813,1715031079145,-16633.17,0.00025205,4]
[326509814,1715031079155,-606.79,0.00025205,4]
[326509815,1715031079166,-4032.46,0.00025205,4]
[326509816,1715031079177,-2140.33,0.00025205,4]
[326509817,1715031079188,-500.0,0.00025205,4]
[326509818,1715031079198,-934.62,0.00025205,4]
[326509819,1715031079208,-727.22,0.00025205,4]
[326509820,1715031079218,-1633.94,0.00025205,4]
[326509821,1715031079229,-969.39,0.00025205,4]
[326509822,1715031079239,-1940.41,0.00025205,4]
[326509823,1715031079250,-500.0,0.00025205,4]
[326509824,1715031079260,-4644.11,0.00025205,4]
[326509825,1715031079271,-730.34,0.00025205,4]
[326509826,1715031079281,-572.84,0.00025205,4]
[326509827,1715031079292,-1375.0,0.00025205,4]
[326509828,1715031079302,-1590.77,0.00025205,4]
[326509829,1715031079313,-2356.14,0.00025205,4]
[326509830,1715031079323,-929.36,0.00025205,4]
[326509831,1715031079334,-3353.91,0.00025205,4]
[326509832,1715031079345,-500.0,0.00025205,4]
[326509833,1715031079355,-500.0,0.00025205,4]
[326509834,1715031079366,-150.0,0.00025236,4]
[326509835,1715031079376,-181.78697411,0.00025242,10]
[326509836,1715031079388,-150.0,0.00025275,4]
[326509837,1715031079399,-150.0,0.00025275,4]
[326509838,1715031079409,-362.37557408,0.00025289,2]
[326509839,1715031079420,-362.37557408,0.00025289,2]
[326509840,1715031079431,-362.37557408,0.00025289,2]
[326509841,1715031079441,-362.37557408,0.00025289,2]
[326509842,1715031079451,-362.37557408,0.00025289,2]
[326509843,1715031079462,-150.0,0.00025295,4]
[326509844,1715031079473,-694.202454,0.00025299,2]
[326509845,1715031079484,-158.852983,0.00025299,2]
[326509846,1715031079495,-7612.28241401,0.000253,7]